[Event "WSTCC-50 2024"]
[Site "Krakow"]
[Date "2024.07.07"]
[Round "6.12"]
[White "Bulkovstein, David"]
[Black "D'Amore, Carlo"]
[Result "0-1"]
[ECO "B06"]
[WhiteElo "1842"]
[BlackElo "2357"]
[Annotator "TA"]
[PlyCount "58"]
[EventDate "2024.07.01"]
[EventType "team-tourn"]
[EventCountry "POL"]
[SourceTitle "playchess.com"]
[Source "ChessBase"]
[SourceQuality "1"]
[TimeControl "40/5400+30:1800+30"]

{[%evp 10,58,48,25,43,2,60,12,72,77,68,0,0,0,58,-110,-118,-202,-178,-201,-186,-193,-149,-143,-143,-139,-143,-130,-135,-166,-172,-281,-277,-514,-522,-514,-501,-503,-513,-810,-807,-802,-779,-952,-794,-753,-621,-884,-795,-783,-789]} 1. e4 {[%emt 0:00:12]} g6 {[%emt 0:00:35]} 2. d4 {[%emt 0:00:21]} Bg7 {[%emt 0:00:06]} 3. Nc3 {[%emt 0:00:05]} d6 {[%emt 0:00:05]} 4. Be3 {[%emt 0:00:47]} a6 {[%emt 0:00:16]} 5. Qd2 {[%emt 0:00:59]} b5 {[%emt 0:00:29]} 6. a3 {[%emt 0:03:33]} Bb7 {[%emt 0:01:37]} 7. h4 {[%emt 0:04:51][%cal Bh2h4,Bh4h5][%mdl 32]} h6 {[%emt 0:07:43]} (7... h5 $11) 8. Nge2 {[%emt 0:17:31]} (8. O-O-O $14) 8... Nd7 {[%emt 0:01:04]} (8... h5 $11) 9. h5 $16 {[%emt 0:04:50]} g5 {[%emt 0:00:57]} 10. g4 {[%emt 0:03:32]} (10. d5 $14) 10... e6 {[%emt 0:01:23]} 11. Ng3 {[%emt 0:02:10]} Ne7 {[%emt 0:02:31]} ({Vorzuziehen ist} 11... c5 $11) 12. b4 $2 {[%emt 0:08:48]} (12. f4 $14 {behält die Oberhand.}) 12... c5 $17 {[%emt 0:08:43]} 13. bxc5 {[%emt 0:05:25]} (13. Rd1 $17) 13... dxc5 $19 {[%emt 0:00:05]} 14. Nce2 {[%emt 0:11:07]} cxd4 {[%emt 0:06:48]} 15. Nxd4 {[%emt 0:00:37]} Ne5 {[%emt 0:00:25]} 16. Be2 {[%emt 0:01:17]} Rc8 {[%emt 0:01:30]} 17. O-O {[%emt 0:04:15]} Nc4 {[%emt 0:04:44] Schwarz steht aktiver.} 18. Bxc4 {[%emt 0:00:42]} Rxc4 {[%emt 0:00:05]} 19. Rfd1 {[%emt 0:04:01][%cal Od4e6] [#] Und Nxe6! würde nun gewinnen.} Qc8 {[%emt 0:00:43]} 20. Ra2 {[%emt 0:03:39]} (20. f3 $142) 20... O-O {[%emt 0:02:28][%cal Of7f5] Droht ...f5! und aus.} 21. Nb3 $2 {[%emt 0:12:16]} (21. c3 {ist eine bessere Verteidigung.}) 21... Bxe4 {[%emt 0:02:42] Schwarz steht klar auf Gewinn.} 22. Nxe4 {[%emt 0:00:48]} Rxe4 {[%emt 0:00:05]} 23. f3 {[%emt 0:00:25]} Rc4 {[%emt 0:03:31]} 24. Qd7 {[%emt 0:07:15] [#]} (24. Qf2 $142) 24... Qa8 $1 {[%emt 0:09:20]} 25. Kf2 {[%emt 0:01:37]} (25. Rf1 Nd5) 25... Nd5 {[%emt 0:00:18]} 26. Rd3 {[%emt 0:01:13]} Qb8 {[%emt 0:05:13]} 27. Kg2 {[%emt 0:00:58] Lässt Qh2+ nicht zu} Rd8 {[%emt 0:01:57]} 28. Qa7 {[%emt 0:00:20]} Qxa7 {[%emt 0:00:32]} 29. Bxa7 {[%emt 0:00:06]} Nf4+ {[%emt 0:00:06] Gewichteter Fehlerwert: Weiß=0.83/Schwarz=0.39.  Fehler:       	Weiß=7     	Schwarz=3     Ungenau:       	Weiß=1     	---        OK:         	Weiß=3     	Schwarz=6     Bester:       	Weiß=1     	Schwarz=3} 0-1

[Event "WSTCC-50 2024"]
[Site "Krakow"]
[Date "2024.07.07"]
[Round "6.12"]
[White "Skorecki, Janusz"]
[Black "Aird, Ian"]
[Result "0-1"]
[ECO "C58"]
[WhiteElo "1729"]
[BlackElo "1840"]
[Annotator "NA RC"]
[PlyCount "46"]
[EventDate "2024.07.01"]
[EventType "team-tourn"]
[EventCountry "POL"]
[SourceTitle "playchess.com"]
[Source "ChessBase"]
[SourceQuality "1"]
[TimeControl "40/5400+30:1800+30"]

1. e4 {[%emt 0:00:00]} e5 {[%emt 0:00:09]} 2. Nf3 {[%emt 0:00:11]} Nc6 {[%emt 0:00:09]} 3. Bc4 {[%emt 0:00:16]} Nf6 {[%emt 0:00:09]} 4. Ng5 {[%emt 0:00:30]} d5 {[%emt 0:00:11]} 5. exd5 {[%emt 0:00:15]} Na5 {[%emt 0:00:07]} 6. Bb5+ {[%emt 0:00:10]} Bd7 {[%emt 0:00:09]} 7. Bxd7+ {[%emt 0:00:49]} Qxd7 {[%emt 0:00:18]} 8. Nc3 {[%emt 0:01:03]} Nxd5 {[%emt 0:01:31]} 9. Nxd5 {[%emt 0:00:20]} Qxd5 {[%emt 0:00:16]} 10. O-O {[%emt 0:00:22]} h6 {[%emt 0:02:16]} 11. Qf3 {[%emt 0:14:06]} Rd8 {[%emt 0:07:23]} 12. Ne4 {[%emt 0:04:03]} Be7 {[%emt 0:01:26]} 13. d3 {[%emt 0:01:02]} O-O {[%emt 0:02:21]} 14. Qg3 {[%emt 0:01:07]} Kh8 {[%emt 0:02:30]} 15. Re1 {[%emt 0:02:45]} Nc6 {[%emt 0:01:11]} 16. Qh3 {[%emt 0:14:00]} Qd7 {[%emt 0:08:28]} 17. Qh5 {[%emt 0:01:51]} Qe6 {[%emt 0:06:07]} 18. Ng3 {[%emt 0:01:03]} Qg6 {[%emt 0:14:14]} 19. Qh3 {[%emt 0:03:12]} f5 {[%emt 0:04:08]} 20. f4 {[%emt 0:01:49]} Bc5+ {[%emt 0:03:07]} 21. Kh1 {[%emt 0:00:09]} Bd6 {[%emt 0:01:36]} 22. fxe5 {[%emt 0:09:30]} Bxe5 {[%emt 0:00:36]} 23. Nh5 {[%emt 0:00:48]} Qg4 {[%emt 0:04:01]} 0-1

[Event "WSTCC-50 2024"]
[Site "Krakow"]
[Date "2024.07.07"]
[Round "6.13"]
[White "Sokolin, Leonid"]
[Black "Adams, Michael"]
[Result "0-1"]
[ECO "C48"]
[WhiteElo "2454"]
[BlackElo "2670"]
[Annotator "TA"]
[PlyCount "56"]
[EventDate "2024.07.01"]
[EventType "team-tourn"]
[EventCountry "POL"]
[SourceTitle "playchess.com"]
[Source "ChessBase"]
[SourceQuality "1"]
[TimeControl "40/5400+30:1800+30"]

{[%evp 14,56,0,0,0,0,0,0,-12,-18,-17,-14,0,-26,0,0,-7,-6,0,0,17,8,10,-17,0,-39,0,0,0,0,0,-27,-27,-105,-107,-517,-503,-1192,-1192,-1353,-1296,-1274,-1230,-29992,-29993]} 1. e4 {[%emt 0:00:02]} e5 {[%emt 0:00:06]} 2. Nf3 {[%emt 0:00:05]} Nc6 {[%emt 0:00:08]} 3. Nc3 {[%emt 0:00:07]} Nf6 {[%emt 0:00:06]} 4. Bb5 {[%emt 0:00:03]} Bc5 {[%emt 0:00:15]} 5. O-O {[%emt 0:00:12]} O-O {[%emt 0:00:06]} 6. Nxe5 {[%emt 0:00:58]} Nxe5 {[%emt 0:00:10]} 7. d4 {[%emt 0:00:05]} Bd6 {[%emt 0:00:07]} 8. f4 {[%emt 0:00:04]} Neg4 {[%emt 0:00:08]} 9. h3 {[%emt 0:00:10]} Bb4 {[%emt 0:01:14] next ...Bxc3 is good for Black.} 10. hxg4 {[%emt 0:00:14] [#] g5 is the strong threat.} Bxc3 {[%emt 0:00:58] The position is equal.} 11. bxc3 {[%emt 0:00:05] Threatens to win with e5.} Nxe4 {[%emt 0:01:04]} 12. Bd3 {[%emt 0:00:06]} Re8 {[%emt 0:09:10]} 13. Qf3 {[%emt 0:08:02]} f5 {[%emt 0:10:50]} 14. gxf5 {[%emt 0:22:31]} d5 {[%emt 0:00:09]} 15. Qh3 {[%emt 0:03:32] Prevents Qh4} g6 {[%emt 0:10:36]} 16. g4 {[%emt 0:12:48]} h5 {[%emt 0:01:50] [#] And now ...hxg4 would win.} 17. Qh2 {[%emt 0:07:11]} (17. fxg6 {seems wilder.} Bxg4 18. Qh2 Qf6 19. f5) 17... Qf6 {[%emt 0:08:38]} 18. Re1 {[%emt 0:05:37]} ({Much worse is} 18. gxh5 Bxf5 19. Rf3 Kg7 (19... Nxc3 $2 {perishes.} 20. hxg6 Qxg6+ 21. Rg3 $18) 20. h6+ Kh7 $17) 18... hxg4 {[%emt 0:08:30]} (18... Kg7 {is interesting.} 19. Bxe4 hxg4 20. fxg6 Rh8) 19. Bxe4 {[%emt 0:01:12]} dxe4 {[%emt 0:01:14]} (19... Kg7 {is more complex.} 20. fxg6 Rh8 21. Qg2 dxe4 22. Qxe4 Bf5) 20. fxg6 {[%emt 0:00:25]} Qxg6 {[%emt 0:00:18]} 21. Rb1 {[%emt 0:00:22]} b6 {[%emt 0:07:59]} 22. f5 {[%emt 0:06:56]} Bxf5 {[%emt 0:02:03]} 23. Bf4 {[%emt 0:00:08]} (23. Qxc7 $11 {keeps the balance.} Rac8 24. Qg3) 23... Re7 $17 {[%emt 0:03:02]} 24. Bxc7 $2 {[%emt 0:02:13][%mdl 8192] White does not recover from this.} (24. Qh6 $17 {is a better chance.}) 24... g3 $19 {[%emt 0:09:51]} 25. Bxg3 {[%emt 0:01:38]} (25. Qxg3 $142 Rxc7 26. Qxg6+ Bxg6 27. Re3) 25... Rh7 {[%emt 0:01:44]} 26. Qf2 {[%emt 0:02:37]} Rf8 {[%emt 0:04:52]} 27. Re3 {[%emt 0:07:11] White is weak on the light squares} Bg4 {[%emt 0:03:11][%cal Og4f3] ( -> ...Bf3!)} 28. Qd2 {[%emt 0:02:39]} Bf3 {[%emt 0:00:57] Weighted Error Value: White=0.80/Black=0.07 (flawless) .  Loses game:     	White=1     	---        Mistake:       	White=2     	---        Inaccurate:     	White=4     	Black=2      OK:         	White=5     	Black=9      Best:        	---       	Black=2} 0-1

[Event "WSTCC-50 2024"]
[Site "Krakow"]
[Date "2024.07.07"]
[Round "6.13"]
[White "Tsiganova, Monika"]
[Black "Baginskaite, Kamile"]
[Result "1-0"]
[ECO "D38"]
[WhiteElo "1999"]
[BlackElo "2057"]
[Annotator "NA RC"]
[PlyCount "53"]
[EventDate "2024.07.01"]
[EventType "team-tourn"]
[EventCountry "POL"]
[SourceTitle "playchess.com"]
[Source "ChessBase"]
[SourceQuality "1"]
[TimeControl "40/5400+30:1800+30"]

1. d4 {[%emt 0:00:10]} Nf6 {[%emt 0:00:44]} 2. c4 {[%emt 0:00:12]} e6 {[%emt 0:00:07]} 3. Nf3 {[%emt 0:00:17]} d5 {[%emt 0:00:20]} 4. Nc3 {[%emt 0:00:35]} Bb4 {[%emt 0:03:21]} 5. cxd5 {[%emt 0:00:54]} exd5 {[%emt 0:00:20]} 6. Bg5 {[%emt 0:00:13]} h6 {[%emt 0:00:29]} 7. Bh4 {[%emt 0:01:53]} Bf5 {[%emt 0:20:45]} 8. Qb3 {[%emt 0:08:46]} Bxc3+ {[%emt 0:04:05]} 9. bxc3 {[%emt 0:00:37]} Nbd7 {[%emt 0:03:28]} 10. e3 {[%emt 0:10:15]} O-O {[%emt 0:03:43]} 11. Be2 {[%emt 0:00:42]} c5 {[%emt 0:13:32]} 12. O-O {[%emt 0:01:45]} c4 {[%emt 0:13:25]} 13. Qxb7 {[%emt 0:05:35]} Qa5 {[%emt 0:06:55]} 14. Bg3 {[%emt 0:09:42]} Qxc3 {[%emt 0:04:37]} 15. Bd6 {[%emt 0:12:11]} Rfc8 {[%emt 0:04:59]} 16. Ne5 {[%emt 0:03:01]} Nxe5 {[%emt 0:08:08]} 17. dxe5 {[%emt 0:01:49]} Ne4 {[%emt 0:05:25]} 18. Qxd5 {[%emt 0:02:05]} Qc2 {[%emt 0:00:11]} 19. Bf3 {[%emt 0:03:22]} Nd2 {[%emt 0:00:22]} 20. Rfd1 {[%emt 0:08:08]} c3 {[%emt 0:00:54]} 21. Rac1 {[%emt 0:03:10]} Qb2 {[%emt 0:01:12]} 22. Qb7 {[%emt 0:03:38]} Nxf3+ {[%emt 0:00:33]} 23. Qxf3 {[%emt 0:00:13]} Bc2 {[%emt 0:01:25]} 24. Re1 {[%emt 0:00:15]} Ba4 {[%emt 0:01:36]} 25. e6 {[%emt 0:01:25]} Qxa2 {[%emt 0:00:54]} 26. Qxf7+ {[%emt 0:01:14]} Kh8 {[%emt 0:00:55]} 27. Be5 {[%emt 0:00:11]} 1-0

[Event "WSTCC-50 2024"]
[Site "Krakow"]
[Date "2024.07.07"]
[Round "6.13"]
[White "Skibbe, Diana"]
[Black "Rogowski, Jaroslaw"]
[Result "1/2-1/2"]
[ECO "B42"]
[WhiteElo "1942"]
[BlackElo "2149"]
[Annotator "RC"]
[PlyCount "51"]
[EventDate "2024.07.01"]
[EventType "team-tourn"]
[EventCountry "POL"]
[SourceTitle "playchess.com"]
[Source "ChessBase"]
[SourceQuality "1"]
[TimeControl "40/5400+30:1800+30"]

1. e4 {[%emt 0:00:02]} c5 {[%emt 0:00:08]} 2. Nf3 {[%emt 0:00:04]} e6 {[%emt 0:00:07]} 3. d4 {[%emt 0:00:13]} cxd4 {[%emt 0:00:06]} 4. Nxd4 {[%emt 0:00:02]} a6 {[%emt 0:00:10]} 5. Bd3 {[%emt 0:02:09]} Qc7 {[%emt 0:00:13]} 6. O-O {[%emt 0:00:43]} Nf6 {[%emt 0:00:30]} 7. Nc3 {[%emt 0:03:16]} Nc6 {[%emt 0:19:49]} 8. Nxc6 {[%emt 0:05:48]} bxc6 {[%emt 0:03:39]} 9. f4 {[%emt 0:02:14]} d5 {[%emt 0:20:35]} 10. e5 {[%emt 0:02:27]} Nd7 {[%emt 0:00:14]} 11. Na4 {[%emt 0:10:41]} c5 {[%emt 0:04:36]} 12. c4 {[%emt 0:02:40]} d4 {[%emt 0:00:48]} 13. b4 {[%emt 0:03:55]} Bb7 {[%emt 0:06:23]} 14. bxc5 {[%emt 0:01:37]} Qc6 {[%emt 0:01:05]} 15. Qc2 {[%emt 0:00:19]} Bxc5 {[%emt 0:14:00]} 16. Nxc5 {[%emt 0:05:33]} Nxc5 {[%emt 0:00:05]} 17. Rf3 {[%emt 0:03:52]} Rc8 {[%emt 0:04:43]} 18. Bb2 {[%emt 0:06:16]} Nxd3 {[%emt 0:02:15]} 19. Rxd3 {[%emt 0:01:38]} Qxc4 {[%emt 0:00:57]} 20. Qxc4 {[%emt 0:03:31]} Rxc4 {[%emt 0:00:04]} 21. Rad1 {[%emt 0:00:20]} O-O {[%emt 0:03:44]} 22. Rxd4 {[%emt 0:00:50]} Rxd4 {[%emt 0:01:43]} 23. Rxd4 {[%emt 0:00:12]} Bd5 {[%emt 0:00:08]} 24. a3 {[%emt 0:02:51]} Rc8 {[%emt 0:00:55]} 25. Rd2 {[%emt 0:02:03]} Rc4 {[%emt 0:03:19]} 26. g3 {[%emt 0:00:07]} 1/2-1/2

[Event "WSTCC-50 2024"]
[Site "Krakow"]
[Date "2024.07.07"]
[Round "6.14"]
[White "Emms, John M"]
[Black "Paschall, William"]
[Result "1/2-1/2"]
[ECO "B22"]
[WhiteElo "2428"]
[BlackElo "2312"]
[Annotator "TA"]
[PlyCount "43"]
[EventDate "2024.07.01"]
[EventType "team-tourn"]
[EventCountry "POL"]
[SourceTitle "playchess.com"]
[Source "ChessBase"]
[SourceQuality "1"]
[TimeControl "40/5400+30:1800+30"]

{[%evp 25,43,0,0,6,23,13,29,21,59,62,60,43,79,43,55,18,30,20,46,27]} 1. e4 {[%emt 0:00:13]} c5 {[%emt 0:00:42]} 2. c3 {[%emt 0:00:17]} d5 {[%emt 0:01:00]} 3. exd5 {[%emt 0:00:08]} Qxd5 {[%emt 0:00:21]} 4. d4 {[%emt 0:00:12]} Nf6 {[%emt 0:00:38]} 5. Nf3 {[%emt 0:00:06]} e6 {[%emt 0:00:53]} 6. Be2 {[%emt 0:00:24]} Nc6 {[%emt 0:04:17]} 7. O-O {[%emt 0:00:32]} cxd4 {[%emt 0:04:23]} 8. cxd4 {[%emt 0:00:25]} Be7 {[%emt 0:02:12]} 9. Nc3 {[%emt 0:00:24]} Qd6 {[%emt 0:03:57]} 10. Nb5 {[%emt 0:00:58]} Qd8 {[%emt 0:05:54]} 11. Bf4 {[%emt 0:00:39]} Nd5 {[%emt 0:01:23]} 12. Bg3 {[%emt 0:01:27]} a6 {[%emt 0:05:12]} 13. Nc3 {[%emt 0:00:56]} O-O {[%emt 0:05:19]} 14. Re1 {[%emt 0:07:28]} Bd7 {[%emt 0:11:07]} 15. Rc1 {[%emt 0:35:12]} Nxc3 {[%emt 0:12:17]} 16. bxc3 {[%emt 0:00:33] White has an edge.} b5 {[%emt 0:01:12]} 17. a4 {[%emt 0:09:20]} bxa4 {[%emt 0:13:53]} 18. Qxa4 {[%emt 0:01:51][%cal Oc1b1]} Re8 {[%emt 0:04:38]} 19. Qa2 {[%emt 0:11:27][%cal Oe2d3] White is more active.} (19. Bxa6 $2 {is the wrong capture.} Ne5 (19... Nb4 $2 20. Qb3 $19) 20. Qd1 Nxf3+ 21. Qxf3 Rxa6 $19) 19... a5 {[%emt 0:03:06]} 20. Nd2 {[%emt 0:06:32]} a4 {[%emt 0:03:00]} 21. Bf3 {[%emt 0:03:48]} Bg5 {[%emt 0:03:36]} 22. Rcd1 {[%emt 0:05:03] Weighted Error Value: White=0.14 (very precise) /Black=0.16 (very precise) .  Inaccurate:     	White=2     	Black=3      OK:         	White=2     	Black=2} 1/2-1/2

[Event "WSTCC-50 2024"]
[Site "Krakow"]
[Date "2024.07.07"]
[Round "6.14"]
[White "Ograbek, Grzegorz"]
[Black "Richter, Ulrike"]
[Result "1-0"]
[ECO "D56"]
[WhiteElo "2063"]
[BlackElo "1904"]
[Annotator "RC"]
[PlyCount "55"]
[EventDate "2024.07.01"]
[EventType "team-tourn"]
[EventCountry "POL"]
[SourceTitle "playchess.com"]
[Source "ChessBase"]
[SourceQuality "1"]
[TimeControl "40/5400+30:1800+30"]

1. d4 {[%emt 0:00:04]} d5 {[%emt 0:00:09]} 2. c4 {[%emt 0:00:23]} e6 {[%emt 0:00:18]} 3. Nf3 {[%emt 0:00:36]} Nf6 {[%emt 0:00:25]} 4. Nc3 {[%emt 0:00:21]} Be7 {[%emt 0:00:56]} 5. Bg5 {[%emt 0:00:27]} O-O {[%emt 0:02:46]} 6. e3 {[%emt 0:00:07]} h6 {[%emt 0:04:27]} 7. Bh4 {[%emt 0:00:06]} a6 {[%emt 0:00:44]} 8. Rc1 {[%emt 0:17:58]} c6 {[%emt 0:08:13]} 9. Bd3 {[%emt 0:00:19]} dxc4 {[%emt 0:00:17]} 10. Bxc4 {[%emt 0:00:07]} Nd5 {[%emt 0:00:35]} 11. Bxe7 {[%emt 0:03:02]} Qxe7 {[%emt 0:01:56]} 12. O-O {[%emt 0:00:22]} Nd7 {[%emt 0:04:40]} 13. Qe2 {[%emt 0:27:39]} Nxc3 {[%emt 0:05:25]} 14. Rxc3 {[%emt 0:00:07]} e5 {[%emt 0:00:45]} 15. Nxe5 {[%emt 0:00:32]} Nxe5 {[%emt 0:00:29]} 16. dxe5 {[%emt 0:00:08]} Qxe5 {[%emt 0:00:10]} 17. f4 {[%emt 0:00:15]} Qe7 {[%emt 0:01:12]} 18. f5 {[%emt 0:00:15]} Qg5 {[%emt 0:08:24]} 19. e4 {[%emt 0:00:39]} Re8 {[%emt 0:03:58]} 20. e5 {[%emt 0:15:57]} Qe7 {[%emt 0:18:06]} 21. Re3 {[%emt 0:08:45]} b5 {[%emt 0:02:44]} 22. Bb3 {[%emt 0:00:07]} Qc5 {[%emt 0:08:39]} 23. Kh1 {[%emt 0:00:17]} a5 {[%emt 0:01:14]} 24. a3 {[%emt 0:06:21]} Ba6 {[%emt 0:02:56]} 25. f6 {[%emt 0:03:10]} g6 {[%emt 0:05:37]} 26. Qg4 {[%emt 0:02:32]} Kf8 {[%emt 0:08:03]} 27. Qf4 {[%emt 0:02:16]} g5 {[%emt 0:02:18]} 28. Qe4 {[%emt 0:01:00]} 1-0

[Event "WSTCC-50 2024"]
[Site "Krakow"]
[Date "2024.07.07"]
[Round "6.14"]
[White "Norinkeviciute, Rasa"]
[Black "Narva, Regina"]
[Result "1/2-1/2"]
[ECO "A36"]
[WhiteElo "1922"]
[BlackElo "1921"]
[Annotator "NA RC"]
[PlyCount "36"]
[EventDate "2024.07.01"]
[EventType "team-tourn"]
[EventCountry "POL"]
[SourceTitle "playchess.com"]
[Source "ChessBase"]
[SourceQuality "1"]
[TimeControl "40/5400+30:1800+30"]

1. c4 {[%emt 0:00:04]} g6 {[%emt 0:00:50]} 2. g3 {[%emt 0:00:24]} Bg7 {[%emt 0:01:15]} 3. Bg2 {[%emt 0:00:12]} c5 {[%emt 0:01:13]} 4. Nc3 {[%emt 0:00:26]} Nc6 {[%emt 0:01:55]} 5. d3 {[%emt 0:04:40]} b6 {[%emt 0:03:01]} 6. Nf3 {[%emt 0:01:43]} Bb7 {[%emt 0:02:08]} 7. Bd2 {[%emt 0:05:18]} Ne5 {[%emt 0:08:43]} 8. O-O {[%emt 0:10:15]} Nxf3+ {[%emt 0:04:12]} 9. exf3 {[%emt 0:14:29]} h5 {[%emt 0:13:21]} 10. h4 {[%emt 0:01:42]} Nf6 {[%emt 0:12:55]} 11. Be3 {[%emt 0:04:10]} O-O {[%emt 0:04:24]} 12. d4 {[%emt 0:01:56]} d6 {[%emt 0:13:18]} 13. Qd2 {[%emt 0:05:31]} Ba6 {[%emt 0:05:15]} 14. b3 {[%emt 0:21:22]} cxd4 {[%emt 0:01:52]} 15. Bxd4 {[%emt 0:00:52]} e5 {[%emt 0:01:09]} 16. Be3 {[%emt 0:02:59]} d5 {[%emt 0:06:20]} 17. Nb5 {[%emt 0:04:35]} Bxb5 {[%emt 0:03:46]} 18. cxb5 {[%emt 0:00:38]} Qd7 {[%emt 0:00:14]} 1/2-1/2

[Event "WSTCC-50 2024"]
[Site "Krakow"]
[Date "2024.07.07"]
[Round "6.15"]
[White "Ginsburg, Mark"]
[Black "Arkell, Keith C"]
[Result "1/2-1/2"]
[ECO "E11"]
[WhiteElo "2272"]
[BlackElo "2375"]
[Annotator "TA"]
[PlyCount "32"]
[EventDate "2024.07.01"]
[EventType "team-tourn"]
[EventCountry "POL"]
[SourceTitle "playchess.com"]
[Source "ChessBase"]
[SourceQuality "1"]
[TimeControl "40/5400+30:1800+30"]

{[%evp 15,32,34,30,33,58,56,80,80,102,81,94,70,78,58,49,53,55,49,78]} 1. d4 {[%emt 0:00:55]} Nf6 {[%emt 0:00:14]} 2. c4 {[%emt 0:01:12]} e6 {[%emt 0:00:04]} 3. Nf3 {[%emt 0:00:07]} Bb4+ {[%emt 0:00:05]} 4. Nbd2 {[%emt 0:00:30]} d5 {[%emt 0:00:52]} 5. Qa4+ {[%emt 0:03:51]} Nc6 {[%emt 0:00:06]} 6. a3 {[%emt 0:01:43]} Be7 {[%emt 0:00:38]} 7. e3 {[%emt 0:01:23]} O-O {[%emt 0:00:20]} 8. Qc2 {[%emt 0:03:57]} a5 {[%emt 0:00:56]} 9. b3 {[%emt 0:01:52]} Re8 {[%emt 0:01:49]} 10. Bd3 {[%emt 0:00:59]} Bf8 {[%emt 0:01:08]} 11. Bb2 {[%emt 0:01:40] White is better.} g6 {[%emt 0:00:25]} 12. O-O {[%emt 0:00:25]} Bg7 {[%emt 0:00:05]} 13. Rad1 {[%emt 0:04:01]} Ne7 {[%emt 0:01:45]} 14. Nb1 {[%emt 0:17:43] White is more active.} b6 {[%emt 0:04:55] White is slightly better.} 15. Nc3 {[%emt 0:01:33]} Bb7 16. Ne5 c6 {Weighted Error Value: White=0.08 (flawless) /Black=0.11 (very precise) .  Inaccurate:     	---       	Black=1      OK:         	White=3     	Black=1} 1/2-1/2

[Event "WSTCC-50 2024"]
[Site "Krakow"]
[Date "2024.07.07"]
[Round "6.15"]
[White "Fomina, Tatyana"]
[Black "Baliuniene, Margarita"]
[Result "1-0"]
[ECO "C10"]
[WhiteElo "2192"]
[BlackElo "1960"]
[Annotator "RC"]
[PlyCount "97"]
[EventDate "2024.07.01"]
[EventType "team-tourn"]
[EventCountry "POL"]
[SourceTitle "playchess.com"]
[Source "ChessBase"]
[SourceQuality "1"]
[TimeControl "40/5400+30:1800+30"]

1. d4 {[%emt 0:00:05]} d5 {[%emt 0:00:06]} 2. Nc3 {[%emt 0:00:05]} e6 {[%emt 0:00:34]} 3. e4 {[%emt 0:02:08]} dxe4 {[%emt 0:00:18]} 4. Nxe4 {[%emt 0:00:13]} Nd7 {[%emt 0:00:36]} 5. Nf3 {[%emt 0:00:54]} Ngf6 {[%emt 0:00:25]} 6. Bd3 {[%emt 0:04:41]} Be7 {[%emt 0:00:31]} 7. O-O {[%emt 0:00:43]} b6 {[%emt 0:01:40]} 8. Qe2 {[%emt 0:07:19]} O-O {[%emt 0:01:45]} 9. c3 {[%emt 0:07:47]} Bb7 {[%emt 0:00:42]} 10. Rd1 {[%emt 0:01:31]} Nxe4 {[%emt 0:06:17]} 11. Bxe4 {[%emt 0:00:13]} Bxe4 {[%emt 0:00:05]} 12. Qxe4 {[%emt 0:00:07]} Nf6 {[%emt 0:00:11]} 13. Qe2 {[%emt 0:00:51]} Qc8 {[%emt 0:06:03]} 14. Bg5 {[%emt 0:02:24]} Re8 {[%emt 0:05:36]} 15. Rd3 {[%emt 0:08:21]} h6 {[%emt 0:02:24]} 16. Bd2 {[%emt 0:04:45]} c5 {[%emt 0:04:48]} 17. Ne5 {[%emt 0:02:48]} Qb7 {[%emt 0:04:51]} 18. Re1 {[%emt 0:01:40]} cxd4 {[%emt 0:03:03]} 19. Rg3 {[%emt 0:03:20]} Bf8 {[%emt 0:04:00]} 20. Bxh6 {[%emt 0:04:45]} dxc3 {[%emt 0:00:31]} 21. bxc3 {[%emt 0:02:38]} Rad8 {[%emt 0:01:50]} 22. h4 {[%emt 0:00:52]} Rd5 {[%emt 0:04:25]} 23. Qf3 {[%emt 0:02:41]} Kh7 {[%emt 0:10:57]} 24. Bg5 {[%emt 0:04:23]} Rxe5 {[%emt 0:23:41]} 25. Rxe5 {[%emt 0:02:29]} Qxf3 {[%emt 0:00:18]} 26. Rxf3 {[%emt 0:01:10]} Ng4 {[%emt 0:00:38]} 27. Re4 {[%emt 0:05:11]} f6 {[%emt 0:07:57]} 28. Rxg4 {[%emt 0:02:33]} fxg5 {[%emt 0:00:05]} 29. Rxg5 {[%emt 0:05:29]} Be7 {[%emt 0:01:14]} 30. Re5 {[%emt 0:01:39]} Bf6 {[%emt 0:00:34]} 31. Re4 {[%emt 0:00:37]} Rc8 {[%emt 0:02:40]} 32. Rxf6 {[%emt 0:05:25]} gxf6 {[%emt 0:00:01]} 33. Rxe6 {[%emt 0:00:09]} Kg6 {[%emt 0:03:04]} 34. g4 {[%emt 0:01:26]} Kf7 {[%emt 0:03:03]} 35. Re3 {[%emt 0:00:21]} Rc4 {[%emt 0:00:09]} 36. f3 {[%emt 0:00:52]} Ra4 {[%emt 0:00:14]} 37. Re2 {[%emt 0:00:06]} Ra3 {[%emt 0:00:07]} 38. Rc2 {[%emt 0:00:13]} Kg6 {[%emt 0:00:16]} 39. Kg2 {[%emt 0:00:18]} b5 {[%emt 0:00:48]} 40. Kg3 {[%emt 0:00:28]} Ra4 {[%emt 0:00:08]} 41. Rd2 {[%emt 0:45:23]} Rc4 {[%emt 0:31:10]} 42. Rd6 {[%emt 0:00:48]} Ra4 {[%emt 0:00:00]} 43. g5 {[%emt 0:00:00]} Rxa2 {[%emt 0:00:00]} 44. Rxf6+ {[%emt 0:00:00]} Kg7 {[%emt 0:00:00]} 45. h5 {[%emt 0:00:00]} Ra1 {[%emt 0:00:00]} 46. Kg4 {[%emt 0:00:00]} a5 {[%emt 0:00:00]} 47. h6+ {[%emt 0:00:00]} Kg8 {[%emt 0:00:00]} 48. Kf5 {[%emt 0:00:00]} a4 {[%emt 0:00:00]} 49. Kg6 {[%emt 0:00:00]} 1-0